Cogmind - Beta 9.4 @@@ ROGUE MODE // 2020.03.25 @ 16:58:11 Player: PYNTER Result: Destroyed by D-53 Grenadier with Mini Grenade Launcher Performance ------------- Evolutions (0) 0 Regions Visited (4) 800 Robots Destroyed (31) 155 Value Destroyed (517) 517 Prototype IDs (1) 20 Alien Tech Used (0) 0 Bonus (209) 209 TOTAL SCORE: 1701 Bonus ------- Follower Combat Kills 63 Aligned with FarCom 300 Friendly Fire -154 Cogmind --------- Core Integrity 0/250 Matter 300/300 Energy 160/160 System Corruption 2% Temperature Cool (0) Movement Treading (160) Location -9/Mines Parts ------- > --- POWER (1) -------- Light Nuclear Core > --- PROPULSION (2) --- Light Treads > --- UTILITY (2) ------ Structural Scanner Signal Interpreter > --- WEAPON (2) ------- AWS/Gauss > --- INVENTORY (4) ---- Compact Matter Pod (150) Heavy EM Pulse Gun Heavy Battle Rifle Mining Laser Peak State ------------ > --- POWER ------------ Light Nuclear Core > --- PROPULSION ------- Light Treads Light Treads > --- UTILITY ---------- Structural Scanner Signal Interpreter > --- WEAPON ----------- AWS/Gauss > --- INVENTORY -------- Compact Matter Pod Heavy EM Pulse Gun Heavy Battle Rifle Mining Laser [Rating: 24] Favorites ----------- Power Ion Engine Engine Ion Engine Power Core Light Nuclear Core Propulsion Light Treads Treads Light Treads Leg Aluminum Leg Utility Signal Interpreter Device Structural Scanner Storage Compact Matter Pod Processor Signal Interpreter Protection Power Shielding Weapon Heavy EM Pulse Gun Energy Gun Heavy EM Pulse Gun Ballistic Gun Heavy Battle Rifle Special Weapon Mining Laser Build | -11 -10 -10 -10 -9 ------- Run | Scr Mat Min Exi Min Slots Evolved . | . . . . . Power . | . . . . . Propulsion . | . . . . . Utility . | . . . . . Weapon . | . . . . . Parts Attached 27 | 6 15 4 1 1 Power 5 | 1 3 . . 1 Engine 4 | 1 3 . . . Core 1 | . . . . 1 Reactor . | . . . . . Propulsion 5 | 2 3 . . . Treads 2 | . 2 . . . Leg 3 | 2 1 . . . Wheel . | . . . . . Hover . | . . . . . Flight . | . . . . . Utility 7 | 1 4 2 . . Device 2 | . 1 1 . . Storage 3 | 1 1 1 . . Processor 1 | . 1 . . . Hackware . | . . . . . Protection 1 | . 1 . . . Artifact . | . . . . . Weapon 10 | 2 5 2 1 . Energy Gun 3 | . 3 . . . Energy Cannon . | . . . . . Ballistic Gun 6 | 2 2 1 1 . Ballistic Cannon . | . . . . . Launcher . | . . . . . Special Weapon 1 | . . 1 . . Impact Weapon . | . . . . . Slashing Weapon . | . . . . . Piercing Weapon . | . . . . . Special Melee Weapon . | . . . . . Unidentified Prototypes 1 | . . . 1 . Parts Lost 3 | . 1 . . 2 Power 1 | . . . . 1 Propulsion 1 | . . . . 1 Utility . | . . . . . Weapon 1 | . 1 . . . Highest Loss Streak 1 | . 1 . . 1 Average Slot Usage (%) 97 | . 97 100 96 83 Engine 13 | . 13 14 14 5 Treads 23 | . 17 28 28 28 Leg 4 | . 10 . . . Device 9 | . 7 5 14 14 Storage 3 | . 2 8 . . Processor 13 | . 13 14 14 14 Protection 1 | . 3 . . . Energy Gun 11 | . 13 23 . . Ballistic Gun 10 | . 13 1 14 14 Special Weapon 4 | . . 2 11 . Naked Turns . | . . . . . Heaviest Build 16 | 12 14 12 16 16 Greatest Support 40 | 20 40 40 40 40 Greatest Overweight (x) 1 | . 1 . . . Average Overweight (x) . | . . . . . Largest Inventory Capacity 6 | 6 6 4 4 4 Average Capacity 4 | 5 4 4 4 4 Most Carried 6 | 4 6 4 4 4 Average Carried 3 | 2 2 3 3 4 Final Capacity 6 | 6 4 4 4 4 Final Carried 4 | 4 4 4 4 4 Class Distribution -------------------- 100% | Mutant Dominant Class ---------------- Mutant | -10/Materials Mutant | -10/Mines Mutant | -10/Exiles Mutant | -9/Mines Resources | -11 -10 -10 -10 -9 ----------- Run | Scr Mat Min Exi Min Matter Collected 628 | 253 310 30 . 35 Remotely . | . . . . . Salvage Created 874 | . 510 140 . 224 Parts 38 | . 19 13 . 6 Haulers Intercepted . | . . . . . Recyclers Shooed . | . . . . . Parts Field Recycled . | . . . . . Retrieved Matter . | . . . . . Parts Self-Destructed . | . . . . . Prevented . | . . . . . Kills | -11 -10 -10 -10 -9 ------- Run | Scr Mat Min Exi Min Combat Hostiles Destroyed 27 | . 13 2 . 12 Guns 26 | . 12 2 . 12 Classes Destroyed 6 | . 3 1 . 2 Worker 2 | . 1 1 . . Builder 1 | . . 1 . . Swarmer 5 | . 3 2 . . Grunt 12 | . 10 1 . 1 Demolisher 1 | . . . . 1 Assembled 10 | . . . . 10 Best Kill Streak 12 | . 3 2 . 12 Combat Bots Only 12 | . 3 1 . 12 Max Kills in Single Turn 2 | . 2 1 . 1 Gunslinging 1 | . 1 . . . Exploded . | . . . . . Melee . | . . . . . Uniques/NPCs Destroyed . | . . . . . Combat | -11 -10 -10 -10 -9 -------- Run | Scr Mat Min Exi Min Damage Taken 1310 | . 770 90 . 450 Core 260 | . 171 . . 89 Absorbed by Shields . | . . . . . Core Remaining (%) 100 | 100 . . . . Volleys Fired 64 | . 52 12 . . Largest 2 | . 2 2 . . Hottest 100 | . 90 100 . . Shots Fired 169 | . 99 23 . 47 Gun 168 | . 99 22 . 47 Cannon . | . . . . . Launcher . | . . . . . Special 1 | . . 1 . . Kinetic 115 | . 68 . . 47 Thermal 28 | . 27 1 . . Explosive . | . . . . . Electromagnetic 26 | . 4 22 . . Robot Hit Streak 12 | . 12 3 . 9 Robot Miss Streak 6 | . 3 6 . 6 Penetration Max . | . . . . . Secondary Targets 2 | . 2 . . . Max Gunslinging Chain 1 | . 1 . . . Autonomous 47 | . . . . 47 Shots Hit Robots 112 | . 72 8 . 32 Core Hits 47 | . 26 7 . 14 Critical Hits 1 | . . . . 1 Critical Kills . | . . . . . Critical Parts Destroyed 1 | . . . . 1 Melee Attacks . | . . . . . Impact . | . . . . . Slashing . | . . . . . Piercing . | . . . . . Sneak Attacks . | . . . . . Combat Hostiles . | . . . . . Follow-up Attacks . | . . . . . Damage Inflicted 2089 | . 984 135 . 970 Guns 2087 | . 984 133 . 970 Cannons . | . . . . . Explosions . | . . . . . Melee . | . . . . . Ramming 2 | . . 2 . . Kinetic 1565 | . 595 . . 970 Thermal 357 | . 357 . . . Explosive . | . . . . . Electromagnetic 165 | . 32 133 . . Impact . | . . . . . Slashing . | . . . . . Piercing . | . . . . . Highest Corruption 2 | . 2 2 2 2 Average Corruption 2 | . 2 2 2 2 Corruption Purged . | . . . . . Effects 21 | . 7 8 5 1 Message Errors 8 | . 1 3 4 . Heat Flow Errors 2 | . . 1 1 . Energy Discharges 3 | . 1 2 . . Data Loss (minor) 6 | . 5 . . 1 Targeting Errors 2 | . . 2 . . Overload Shots . | . . . . . Overflow Damage . | . . . . . Projectiles . | . . . . . Explosions . | . . . . . Melee . | . . . . . Knockbacks . | . . . . . Impact . | . . . . . Kinetic . | . . . . . Secondary . | . . . . . Self-Inflicted Damage . | . . . . . Shots . | . . . . . Rammed 1 | . . 1 . . Targets Rammed 1 | . . 1 . . Kicked . | . . . . . Crushed . | . . . . . Highest Temperature 336 | . 336 188 244 4 Average Temperature 107 | . 129 51 128 4 Received Heat Transfer 356 | . 306 . . 50 Siege Activations . | . . . . . Robots Corrupted . | . . . . . Combat Hostiles . | . . . . . Parts Fried . | . . . . . Impact Corruptions . | . . . . . Robots Melted 1 | . 1 . . . Combat Hostiles 1 | . 1 . . . Parts Melted . | . . . . . Heat Transferred 851 | . 851 . . . Parts Sabotaged . | . . . . . Parts Stolen . | . . . . . Parts Stripped . | . . . . . Power Chain Reactions . | . . . . . Missiles Intercepted . | . . . . . Alert | -11 -10 -10 -10 -9 ------- Run | Scr Mat Min Exi Min Peak Influence 167 | . 167 102 . 45 Average Influence 41 | . 45 40 . 18 Maximum Alert Level . | . . . . . Low Security (%) 100 | 100 100 100 . 100 Level 1 . | . . . . . Level 2 . | . . . . . Level 3 . | . . . . . Level 4 . | . . . . . Level 5 . | . . . . . High Security . | . . . . . Max Security . | . . . . . Squads Dispatched 4 | . 4 . . . Investigation 2 | . 2 . . . Extermination . | . . . . . Reinforcement 2 | . 2 . . . Assault . | . . . . . Garrison . | . . . . . Intercept . | . . . . . Construction Impeded . | . . . . . Haulers Reinforced . | . . . . . Stealth | -11 -10 -10 -10 -9 --------- Run | Scr Mat Min Exi Min Distress Signals 1 | . 1 . . . Communications Jammed . | . . . . . Distress Signals . | . . . . . Times Spotted 37 | . 15 6 . 16 Peak Tracking Total 7 | . 3 3 . 7 Tactical Retreats 2 | . 1 . . 1 Traps | -11 -10 -10 -10 -9 ------- Run | Scr Mat Min Exi Min Traps Triggered 2 | . 2 . . . Indirectly . | . . . . . Trap Hack Attempts . | . . . . . Triggered . | . . . . . Disarmed . | . . . . . Reprogrammed . | . . . . . Reused . | . . . . . Traps Extracted . | . . . . . Installed . | . . . . . Triggered . | . . . . . Machines | -11 -10 -10 -10 -9 ---------- Run | Scr Mat Min Exi Min Machines Disabled 2 | . . 2 . . Max in Single Turn 1 | . . 1 . . Machines Sabotaged . | . . . . . Garrisons Compromised . | . . . . . Overloaded Fab Kills . | . . . . . Fab Network Shutdowns . | . . . . . Hacking | -11 -10 -10 -10 -9 --------- Run | Scr Mat Min Exi Min Machines Accessed 7 | . 3 . 4 . Terminals 2 | . 2 . . . Fabricators . | . . . . . Repair Stations 1 | . 1 . . . Recycling Units . | . . . . . Scanalyzers . | . . . . . Garrison Access . | . . . . . Total Hacks 58 | . 10 . 48 . Successful 55 | . 7 . 48 . Failed 3 | . 3 . . . Catastrophic . | . . . . . Database Lockouts . | . . . . . Manual 1 | . . . 1 . Terminals 5 | . 5 . . . Fabricators . | . . . . . Repair Stations 5 | . 5 . . . Recycling Units . | . . . . . Scanalyzers . | . . . . . Garrison Access . | . . . . . Terminal Hacks 51 | . 3 . 48 . Record 50 | . 2 . 48 . Zone Layout 1 | . 1 . . . Fabricator Hacks . | . . . . . Repair Station Hacks 4 | . 4 . . . Scan Component 2 | . 2 . . . Repair 2 | . 2 . . . Recycling Unit Hacks . | . . . . . Scanalyzer . | . . . . . Garrison Access Hacks . | . . . . . Unauthorized Hacks . | . . . . . Terminals . | . . . . . Fabricators . | . . . . . Repair Stations . | . . . . . Recycling Units . | . . . . . Scanalyzers . | . . . . . Garrison Access . | . . . . . Data Cores Recovered . | . . . . . Used . | . . . . . Hacking Detections 2 | . 2 . . . Full Trace Events 2 | . 2 . . . Feedback Events . | . . . . . Feedback Blocked . | . . . . . Robot Schematics Acquired . | . . . . . Robots Built . | . . . . . Matter . | . . . . . Time . | . . . . . Total Robot Build Rating . | . . . . . Part Schematics Acquired . | . . . . . Parts Built . | . . . . . Matter . | . . . . . Time . | . . . . . Total Part Build Rating . | . . . . . Parts Repaired 2 | . 2 . . . Time 52 | . 52 . . . Parts Recycled . | . . . . . Recycled Matter . | . . . . . Retrieved Matter . | . . . . . Retrieved Components . | . . . . . Parts Scanalyzed . | . . . . . Part Schematics Acquired . | . . . . . Parts Damaged . | . . . . . Bothacking | -11 -10 -10 -10 -9 ------------ Run | Scr Mat Min Exi Min Used RIF Installer . | . . . . . Robots Hacked . | . . . . . Non-combat . | . . . . . Combat . | . . . . . Robot Hacks Applied . | . . . . . Relay Couplers Released . | . . . . . Robots Rewired . | . . . . . Allies Hacked . | . . . . . Hacks Repelled . | . . . . . Allies | -11 -10 -10 -10 -9 -------- Run | Scr Mat Min Exi Min Total Allies 4 | . . 4 . . Largest Group 3 | . . 3 3 2 Highest-Rated Group 55 | . . 55 55 24 Highest-Rated Ally 31 | . . 31 31 16 Total Orders . | . . . . . Ally Attacks 21 | . . 8 . 13 Total Damage 269 | . . 107 . 162 Kills 6 | . . 4 . 2 Allies Corrupted . | . . . . . Allies Melted . | . . . . . Intel | -11 -10 -10 -10 -9 ------- Run | Scr Mat Min Exi Min Robot Analysis Total . | . . . . . Derelict Logs Recovered 1 | . . 1 . . Drone Launches . | . . . . . Drone Recoveries . | . . . . . Exploration | -11 -10 -10 -10 -9 ------------- Run | Scr Mat Min Exi Min Turns Passed 3004 | 71 1249 711 896 77 Spaces Moved 1732 | 59 669 401 556 47 Core 17 | 17 . . . . Treads 1406 | . 402 401 556 47 Legs 309 | 42 267 . . . Wheels . | . . . . . Hover . | . . . . . Flight . | . . . . . Fastest Speed 50 | 50 120 160 160 160 Average Speed 151 | 99 144 160 160 160 Slowest Speed 160 | 120 160 160 160 160 Overloaded Moves . | . . . . . Propulsion Burnouts . | . . . . . Robots Hopped . | . . . . . Cave-ins Triggered . | . . . . . Exploration Rate (%) 57 | 4 90 80 93 20 Regions Visited 4 Branch Regions 3 Pre-discovered Areas 1 | . . . 1 . Known Exits Taken 3 | . 1 1 1 . Unknown Exits Taken 1 | 1 . . . . Scrap Searched 1 | . . 1 . . Spaces Dug 1 | . . 1 . . Terrain Destroyed 42 | . . 1 . 41 Melee . | . . . . . Projectile 42 | . . 1 . 41 AOE . | . . . . . Actions | -11 -10 -10 -10 -9 --------- Run | Scr Mat Min Exi Min Total 1992 | 68 863 449 564 48 Wait 119 | . 101 14 4 . Move 1728 | 58 668 400 555 47 Hop . | . . . . . Pick Up 19 | 4 7 8 . . Fast Attach 22 | 6 12 2 1 1 Attach 5 | . 3 2 . . Detach 9 | . 7 . 2 . Swap . | . . . . . Drop 25 | . 13 10 2 . Fire 64 | . 52 12 . . Melee . | . . . . . Ram . | . . . . . Kick . | . . . . . Crush 1 | . . 1 . . Escape Stasis . | . . . . . Rewire . | . . . . . Trap . | . . . . . Miscellaneous . | . . . . . Route ------- -11/Scrapyard -10/Materials (discovered 5 exits: *Mat x3 / *Min x2) -10/Mines (discovered 2 exits: *Mat / *Exi) -10/Exiles (discovered 2 exits: *Min x2) -9/Mines History --------- Turn | Location | Event 3 | -11/Scrapyard | Discovered new exit (range 16) 72 | -11/Scrapyard | Entered Materials 302 | -10/Materials | Build established: Mutant 425 | -10/Materials | Discovered new exit (range 14) 644 | -10/Materials | Discovered new exit (range 15) 670 | -10/Materials | Identified exit to Mines 698 | -10/Materials | Core integrity fell below 50% 934 | -10/Materials | Discovered new exit (range 16) 956 | -10/Materials | Identified exit to Materials 1095 | -10/Materials | Discovered exit to Mines (range 5) 1145 | -10/Materials | Discovered exit to Materials (range 16) 1240 | -10/Materials | Repaired Lgt. Assault Rifle 1267 | -10/Materials | Repaired Ion Engine 1321 | -10/Materials | Entered Mines 1329 | -10/Mines | Assisted by bots powering up and referring to "LRC-V3" 1434 | -10/Mines | Learned Materials interactive machine intel 1528 | -10/Mines | Found a hidden stash of uninstalled traps 1666 | -10/Mines | Discovered exit to Materials (range 12) 1877 | -10/Mines | Received a Mining Laser from a helpful Derelict 1957 | -10/Mines | A weapon hastily lodged in a ceiling crevice suddenly fell to the ground 2022 | -10/Mines | Deemed a non-threat by the Exiles lab entrance 2024 | -10/Mines | Discovered new exit (range 5) 2029 | -10/Mines | Identified exit to Exiles 2032 | -10/Mines | Entered Exiles 2032 | -10/Exiles | Accompanied by 3 allies 2072 | -10/Exiles | Met 8R-AWN 2098 | -10/Exiles | Met EX-HEX 2178 | -10/Exiles | Met EX-DEC 2222 | -10/Exiles | Visited The Gauntlet 2428 | -10/Exiles | Learned location of Zion (-6) 2487 | -10/Exiles | Discovered new exit (range 14) 2504 | -10/Exiles | Identified exit to Mines 2618 | -10/Exiles | Met EX-BIN 2636 | -10/Exiles | Aligned with FarCom system 2637 | -10/Exiles | Given EX-Vault access code 2724 | -10/Exiles | Opened EX-Vault 2762 | -10/Exiles | Found Prototype Ballistic Gun 2762 | -10/Exiles | Identified AWS/Gauss 2795 | -10/Exiles | Warned to stay clear of 0b10 Research branches 2904 | -10/Exiles | Discovered exit to Mines (range 14) 2928 | -10/Exiles | Left Exiles lab with AWS/Gauss 2928 | -10/Exiles | Entered Mines 2928 | -9/Mines | Accompanied by 2 allies 2929 | -9/Mines | Assembled infested the area 2957 | -9/Mines | Core integrity fell below 20% 3005 | -9/Mines | Destroyed by D-53 Grenadier with Mini Grenade Launcher Last Messages --------------- Acquired 10 matter. as-75516 destroyed. Slug penetrates as-41844. Slug penetrates Wall. Destroyed Asb. Hover Unit. as-41844 destroyed. System corrupted: Component data lost. U-05 Engineer lays Concrete. Slug penetrates D-53 Grenadier. D-53 Grenadier destroyed. Slug penetrates D-53 Grenadier. U-05 Engineer lays Concrete. Lgt. Treads destroyed. The unstable cave ceiling collapses. Slug penetrates D-53 Grenadier. Slug penetrates Earth. U-05 Engineer builds a Wall. K-01 Serf collects debris. R-06 Scavenger collects Aluminum Leg. U-05 Engineer lays Concrete. Map ----- +----------------------------------------------------+ | ???# #??????????##### #???? | | ???# """ #######???## #???? | | ???# """ #??## #????? | | ???# """ ####" #### """ #?????? | | ???# ####" "##% """ #?????? | | ???########""""%! """ #?????? | | ??????????# *"" % #?????? | | ??????# "# *%= ##?????? | | ??????# ## ##"%!% ##??????? | | ?????????## ###""%*= ######??? | | ??????????#####??? ""%% #??? | | ??????????????????##"" % ##??? | | ???????????????????# ;""%% ##???? | | ??????????????????###;#"" ##????? | | ?????????????????## ### % "#?????? | | ?????????????????# ?#" ""#?????? | | ?????????????????# ##"#%###?????? | | ?????????????????## %[% ;#??????? | | ??????????????????# < rr#"" ;#??????? | | ?????????????????? ### ##??????? | | ?????????????????? ### #???????? | | ?????????????????## # # ###?????? | | ??????????????????## # # ##????? | | ???????????????????# # #????? | | ?????????????????### !# #????? | | ????????????????# ; d%] @ #?????? | | ?????????????????### =# #????? | | ??????????????????????## ##????? | | ??????????????????????# # #?????? | | ????????????????????? #####?????? | | ???????????????????? # ?????????? | | ???????????????????# # ?????????? | | ?????????????????? u ? ?????????? | | ?????????????????##u ? ?????????? | | ?????????????????? ? ?????????? | | ????????????????? ? ?????????? | | ???????????????? k # #?#?????????? | | ???????????????? # ????????????? | | ??????????????????#?#?# ????????????? | | ??????????????????????# ????????????? | | ????????????????????????????????????? | | ????????????????????????????????????? | | ????????????????????????????????????? | | ????????????????????????????????????? | | ????????????????????????????????????? | | ????????????????????????????????????? | | ????????????????????????????????????? | | ????????????????????????????????????? | | ????????????????????????????????????? | | ????????????????????????????????????? | +----------------------------------------------------+ Best States ------------- Heat Dissipation 25 Energy Generation 14 Energy Capacity 250 Matter Stores 450 Matter Capacity 450 Sight Range 16 Robot Scan Range 10 Terrain Scan Density 10 Power Shielding 33 Evasion (%) 50 Recoil Reduction 2 Item Schematics ----------------- None Robot Schematics ------------------ None Fabricated ------------ Nothing Alien Tech Used ----------------- None Achievements -------------- Backstab It's Just You Challenges ------------ None Game ------ Seed CatalystGrenadeSegregator Manual? 0 Play Time 00:21:16 Cumulative 4.6 hours Start 2020.03.25 @ 16:37:52 End 2020.03.25 @ 16:58:11 Sessions 1 Manual Loads 0 Difficulty Rogue Special Mode None Game No. 9 Rogue 9 Adventurer 0 Explorer 0 Win Type - Total 0 Types 0/0/0/0/0/0/0 Lore% 15 Gallery% 12 Achievement% 10 Wizard Run 0 Options --------- ASCII 0 Keyboard 0 Movement Numpad Keybinds 0 Fullscreen 1 Font 18/TerminusBold Map View 76x50 Tactical HUD 0 Map Filters NONE Filters NONE Steam 1 RUN: 4c1b42f0-a139-4589-ae06-4a355bb16595